bitfinex/quotes_SOLUSD_20260224
["timestamp","ask_amount","ask_price","bid_price","bid_amount"]
[1771942199826,32.65973619,76.547,76.494,1.30484396]
[1771942201843,5.04629314,76.54,76.496,1.30484396]
[1771942202345,5.04629314,76.53,76.496,1.30484396]
[1771942202542,5.04629314,76.52,76.489,1.30484396]
[1771942202840,267.76034794,76.561,76.489,1.30484396]
[1771942202841,5.04629314,76.54,76.489,1.30484396]
[1771942204221,45.72413972,76.546,76.491,1.30484396]
[1771942204438,5.04629314,76.54,76.491,1.30484396]
[1771942205145,13.06325373,76.551,76.491,1.30484396]
[1771942205437,5.04629314,76.54,76.491,1.30484396]
[1771942205940,5.04629314,76.55,76.491,1.30484396]
[1771942206548,5.04629314,76.55,76.493,1.30484396]
[1771942206549,13.06352793,76.549,76.493,1.30484396]
[1771942206724,45.72234777,76.549,76.493,1.30484396]
[1771942208020,5.04629314,76.54,76.493,1.30484396]
[1771942208221,45.72234777,76.549,76.493,1.30484396]
[1771942208742,3.69383402,76.572,76.494,202.63027162]
[1771942208964,5.04629314,76.65,76.498,1.30484396]
[1771942209117,5.04629314,76.65,76.497,3.69383402]
[1771942209118,104.66015181,76.659,76.553,1.30484396]
[1771942209318,5.04629314,76.62,76.553,1.30484396]
[1771942209634,5.04629314,76.61,76.553,1.30484396]
[1771942211027,5.04629314,76.61,76.555,1.30484396]
[1771942211348,5.03918154,76.63,76.558,1.30484396]
[1771942214240,5.03918154,76.57,76.549,6.8246573]
[1771942214632,3.69383402,76.597,76.542,58.86]
[1771942214633,5.03918154,76.56,76.542,58.86]
[1771942214827,5.03918154,76.57,76.543,13.06455195]
[1771942215235,12.61862656,76.57,76.543,13.06455195]
[1771942215435,12.61862656,76.57,76.543,14.36939591]
[1771942215749,13.05885415,76.577,76.544,1.30484396]
[1771942216049,12.61862656,76.57,76.544,1.30484396]
[1771942216436,12.61862656,76.57,76.542,58.86]
[1771942216643,12.61862656,76.56,76.542,58.86]
[1771942216946,12.61862656,76.57,76.542,58.86]
[1771942217328,12.61862656,76.56,76.542,58.86]
[1771942218431,12.61862656,76.56,76.534,1.30484396]
[1771942218837,45.71040499,76.569,76.534,1.30484396]
[1771942219237,45.71040499,76.569,76.536,1.30484396]
[1771942221951,45.71040499,76.569,76.538,1.30484396]
[1771942222752,13.06011571,76.569,76.538,1.30484396]
[1771942223956,12.61862656,76.57,76.54,1.30484396]
[1771942226251,12.61862656,76.57,76.542,1.30484396]
[1771942226648,12.61862656,76.57,76.537,14.37038832]
[1771942226857,12.61862656,76.56,76.537,14.37038832]
[1771942227054,12.61862656,76.56,76.538,1.30484396]
[1771942227353,12.61862656,76.57,76.538,1.30484396]
[1771942229331,13.06011571,76.569,76.538,1.30484396]
[1771942229969,13.05687575,76.588,76.54,1.30484396]
[1771942230138,12.61862656,76.58,76.54,1.30484396]
[1771942230642,12.61862656,76.57,76.54,1.30484396]
[1771942230842,12.61862656,76.58,76.54,1.30484396]
[1771942231655,13.05841026,76.579,76.542,1.30484396]
[1771942232756,12.61862656,76.59,76.542,1.30484396]
[1771942233256,12.61862656,76.58,76.542,1.30484396]
[1771942236458,13.05841026,76.579,76.544,1.30484396]
[1771942238661,13.05841026,76.579,76.546,1.30484396]
[1771942241058,13.05841026,76.579,76.548,1.30484396]
[1771942241574,13.05500071,76.599,76.548,1.30484396]
[1771942241950,5.04636661,76.58,76.548,1.30484396]
[1771942244402,5.04636661,76.57,76.539,32.66298614]
[1771942244671,5.04636661,76.57,76.542,1.30484396]
[1771942246968,45.71040499,76.569,76.536,1.30484396]
[1771942247270,5.04636661,76.55,76.506,1.30484396]
[1771942248377,5.04636661,76.54,76.506,1.30484396]
[1771942249175,13.06523471,76.539,76.508,1.30484396]
[1771942249349,13.06369859,76.548,76.508,1.30484396]
[1771942255380,13.06369859,76.548,76.484,3.69383402]
[1771942255381,13.06295328,76.553,76.51,1.30484396]
[1771942255965,45.70324231,76.581,76.51,1.30484396]
[1771942256174,5.04636661,76.59,76.513,1.30484396]
[1771942256364,5.04636661,76.6,76.513,1.30484396]
[1771942257589,13.05500071,76.599,76.518,1.30484396]
[1771942259464,5.04636661,76.61,76.519,254.83866749]
[1771942259662,13.05329661,76.609,76.523,1.30484396]
[1771942259862,13.05273608,76.613,76.523,1.30484396]
[1771942260481,5.04636661,76.6,76.523,1.30484396]
[1771942260688,5.04636661,76.59,76.523,1.30484396]
[1771942261682,13.05670527,76.589,76.528,1.30484396]
[1771942263383,12.61094653,76.6,76.533,1.30484396]
[1771942266481,13.05500071,76.599,76.537,3.69383402]
[1771942266781,13.05500071,76.599,76.538,1.30484396]
[1771942268000,13.05312622,76.61,76.538,1.30484396]
[1771942268372,12.61094653,76.62,76.538,1.30484396]
[1771942268373,13.05159294,76.619,76.538,1.30484396]
[1771942268689,13.04988972,76.629,76.543,1.30484396]
[1771942269493,0.2,76.63,76.543,1.30484396]
[1771942269881,13.2497597,76.63,76.543,1.30484396]
[1771942270576,58.4850048,76.63,76.548,1.30484396]
[1771942270782,12.61094653,76.61,76.548,1.30484396]
[1771942270987,12.61094653,76.62,76.548,1.30484396]
[1771942271292,12.61094653,76.61,76.548,1.30484396]
[1771942273313,45.68653813,76.609,76.553,1.30484396]
[1771942273609,12.61023246,76.59,76.553,1.30484396]
[1771942274072,12.61023246,76.6,76.553,1.30484396]
[1771942274280,12.61023246,76.59,76.553,1.30484396]
[1771942274493,13.05670527,76.589,76.554,13.06267471]
[1771942275004,13.05670527,76.589,76.555,1.30484396]
[1771942275987,12.61023246,76.58,76.55,13.06326854]
[1771942276191,12.61023246,76.58,76.55,14.3681125]
[1771942276402,45.69846844,76.589,76.551,1.30484396]
[1771942278093,12.61023246,76.58,76.551,1.30484396]
[1771942278288,12.61023246,76.58,76.545,1.30484396]
[1771942280487,12.61023246,76.58,76.493,102.96664657]
[1771942280488,12.61023246,76.57,76.539,1.30484396]
[1771942280689,12.61023246,76.57,76.533,1.30484396]
[1771942285902,13.06011571,76.569,76.535,1.30484396]
[1771942286496,103.9,76.601,76.535,1.30484396]
[1771942286696,65.26515052,76.611,76.535,1.30484396]
[1771942286697,12.61023246,76.59,76.535,1.30484396]
[1771942287911,13.05670527,76.589,76.537,1.30484396]
[1771942290403,13.05670527,76.589,76.539,1.30484396]
[1771942294528,12.61023246,76.58,76.541,1.30484396]
[1771942296624,12.61023246,76.57,76.542,13.06472263]
[1771942297531,12.61023246,76.58,76.543,1.30484396]
[1771942297724,12.61023246,76.59,76.543,1.30484396]
[1771942298328,97.90994895,76.601,76.543,1.30484396]
[1771942298329,12.61023246,76.58,76.543,1.30484396]
[1771942298540,12.61023246,76.58,76.545,1.30484396]
[1771942298541,45.70443593,76.579,76.545,1.30484396]
[1771942299806,12.61023246,76.57,76.544,13.06438127]
[1771942300826,12.61023246,76.58,76.54,1.30484396]
[1771942301031,110.97040353,76.597,76.54,1.30484396]
[1771942301032,12.61023246,76.57,76.54,1.30484396]
[1771942302229,12.61023246,76.58,76.54,1.30484396]
[1771942303027,45.70443593,76.579,76.541,13.06489332]
[1771942303208,45.70443593,76.579,76.542,1.30484396]
[1771942303913,12.61023246,76.57,76.542,1.30484396]
[1771942304125,45.70443593,76.579,76.542,1.30484396]
[1771942305204,5.04621464,76.58,76.544,1.30484396]
[1771942306420,13.05841026,76.579,76.546,1.30484396]
[1771942307517,45.70443593,76.579,76.546,1.30484396]
[1771942307717,5.04621464,76.59,76.546,1.30484396]
[1771942308023,5.04621464,76.58,76.546,1.30484396]
[1771942310634,45.70443593,76.579,76.546,1.30484396]
[1771942312040,45.70443593,76.579,76.548,1.30484396]
[1771942316218,37.59018192,76.579,76.548,1.30484396]
[1771942316432,5.04621464,76.61,76.549,1.30484396]
[1771942316922,5.04621464,76.6,76.549,1.30484396]
[1771942317640,5.04621464,76.6,76.551,1.30484396]
[1771942318634,13.05463774,76.602,76.551,1.30484396]
[1771942319035,5.04621464,76.6,76.551,1.30484396]
[1771942319734,5.04621464,76.6,76.553,1.30484396]
[1771942320243,13.05500071,76.599,76.553,1.30484396]
[1771942321047,5.04621464,76.59,76.553,1.30484396]
[1771942321719,5.04621464,76.59,76.555,1.30484396]
[1771942323646,5.04621464,76.59,76.554,45.71936149]
[1771942323647,18.10278578,76.59,76.557,1.30484396]
[1771942326844,18.10278578,76.59,76.559,1.30484396]
[1771942329049,5.04621464,76.58,76.54,1.30484396]
[1771942330448,5.04621464,76.57,76.54,1.30484396]
[1771942330831,5.04621464,76.58,76.54,1.30484396]
[1771942331147,13.05841026,76.579,76.542,1.30484396]
[1771942332552,45.70443593,76.579,76.542,1.30484396]
[1771942332730,13.05841026,76.579,76.542,1.30484396]
[1771942333349,45.69847705,76.589,76.544,1.30484396]
[1771942333739,5.04520793,76.58,76.544,1.30484396]
[1771942335747,13.05841026,76.579,76.546,1.30484396]
[1771942339550,13.05841026,76.579,76.548,1.30484396]
[1771942341543,13.05841026,76.579,76.55,1.30484396]
[1771942343442,45.70443593,76.579,76.55,1.30484396]
[1771942344755,5.04520793,76.57,76.541,1.30484396]
[1771942347341,5.04520793,76.54,76.508,1.30484396]
[1771942350161,13.06523471,76.539,76.51,1.30484396]
[1771942351051,13.06523471,76.539,76.512,1.30484396]
[1771942351967,5.04520793,76.53,76.489,1.30484396]
[1771942352162,5.04520793,76.51,76.485,1.30484396]
[1771942352460,5.04520793,76.51,76.48,0.1]
[1771942352848,5.04520793,76.51,76.48,1.40484396]
[1771942353353,13.07035773,76.509,76.481,1.30484396]
[1771942355561,3.69383402,76.527,76.483,1.30484396]
[1771942355748,5.04520793,76.52,76.483,1.30484396]
[1771942356074,3.69383402,76.527,76.483,1.30484396]
[1771942356075,5.04520793,76.51,76.483,1.30484396]
[1771942358673,13.07035773,76.509,76.483,1.30484396]
[1771942360076,5.04520793,76.52,76.485,1.30484396]
[1771942360577,13.06864961,76.519,76.487,1.30484396]
[1771942362076,5.04520793,76.53,76.487,1.30484396]
[1771942363571,5.04520793,76.52,76.489,1.30484396]
[1771942364076,5.04520793,76.51,76.482,1.30484396]
[1771942365177,5.04520793,76.52,76.482,1.30484396]
[1771942367078,5.04520793,76.51,76.484,1.30484396]
[1771942368078,5.04520793,76.52,76.484,1.30484396]
[1771942369874,13.06864961,76.519,76.486,1.30484396]
[1771942375070,13.06864961,76.519,76.487,13.07411717]
[1771942375297,13.06864961,76.519,76.488,1.30484396]
[1771942377689,13.06694194,76.529,76.49,1.30484396]
[1771942378894,5.04520793,76.52,76.49,1.30484396]
[1771942380577,13.06864961,76.519,76.492,1.30484396]
[1771942384688,13.06864961,76.519,76.494,1.30484396]
[1771942385089,13.06694194,76.529,76.494,1.30484396]
[1771942385496,45.73429679,76.529,76.494,1.30484396]
[1771942387403,5.04520793,76.53,76.494,1.30484396]
[1771942388587,50.77293198,76.54,76.496,1.30484396]
[1771942388789,18.11027194,76.54,76.496,1.30484396]
[1771942389494,18.11027194,76.54,76.498,1.30484396]
[1771942389701,5.04520793,76.53,76.498,1.30484396]
[1771942391310,13.06694194,76.529,76.5,1.30484396]
[1771942392504,13.06523471,76.539,76.5,1.30484396]
[1771942393797,45.7283215,76.539,76.502,1.30484396]
[1771942395001,5.05135626,76.56,76.502,1.30484396]
[1771942395187,5.05135626,76.57,76.502,1.30484396]
[1771942395899,13.06011571,76.569,76.502,1.30484396]
[1771942396100,13.06011571,76.569,76.506,3.69383402]
[1771942396304,13.06011571,76.569,76.507,1.30484396]
[1771942399202,45.71040499,76.569,76.512,1.30484396]
[1771942400595,5.05135626,76.56,76.512,1.30484396]
[1771942401305,5.05135626,76.56,76.514,1.30484396]
[1771942401306,13.0618216,76.559,76.514,1.30484396]
[1771942402706,13.0618216,76.559,76.516,1.30484396]
[1771942406015,45.71040499,76.569,76.518,1.30484396]
[1771942409395,45.71040499,76.569,76.52,1.30484396]
[1771942410403,5.05135626,76.56,76.52,1.30484396]
[1771942410996,45.71040499,76.569,76.52,1.30484396]
[1771942411602,45.71040499,76.569,76.51,65.35081342]
[1771942411603,45.71040499,76.569,76.522,1.30484396]
[1771942412004,13.06011571,76.569,76.522,1.30484396]
[1771942412218,45.71040499,76.569,76.522,1.30484396]
[1771942412425,5.05135626,76.56,76.522,1.30484396]
[1771942415307,13.0618216,76.559,76.524,1.30484396]
[1771942415505,5.05135626,76.55,76.505,1.30484396]
[1771942415719,5.05135626,76.55,76.506,1.30484396]
[1771942415905,5.05135626,76.54,76.506,1.30484396]
[1771942416415,5.05135626,76.54,76.464,102.96664657]
[1771942416416,5.05135626,76.53,76.5,1.30484396]
[1771942416723,5.05135626,76.51,76.477,1.30484396]
[1771942416923,5.05135626,76.51,76.442,52.32662754]
[1771942416924,5.05135626,76.51,76.47,1.40484396]
[1771942417105,5.05135626,76.51,76.482,13.07480555]
[1771942417419,13.0697379,76.513,76.483,1.30484396]
[1771942417620,5.05135626,76.52,76.483,1.30484396]
[1771942417621,13.06864961,76.519,76.483,1.30484396]
[1771942426433,13.06864961,76.519,76.485,1.30484396]
[1771942426734,45.74027365,76.519,76.485,1.30484396]
[1771942426922,13.06864961,76.519,76.485,1.30484396]
[1771942430829,13.06864961,76.519,76.486,13.0742881]
[1771942431037,13.06864961,76.519,76.487,1.30484396]
[1771942435315,5.05135626,76.51,76.48,1.40484396]
[1771942435519,5.05135626,76.51,76.481,13.07514284]
[1771942435725,5.05135626,76.51,76.482,1.30484396]
[1771942436622,45.74027365,76.519,76.482,1.30484396]
[1771942437027,13.06864961,76.519,76.482,1.30484396]
[1771942437233,45.74027365,76.519,76.482,1.30484396]
[1771942437737,5.05135626,76.51,76.482,1.30484396]
[1771942438540,5.05135626,76.51,76.483,13.07480093]
[1771942438919,5.05135626,76.51,76.484,1.30484396]
[1771942440524,18.12168006,76.51,76.486,1.30484396]
[1771942442439,18.12168006,76.51,76.481,1.30484396]
[1771942445337,13.06864961,76.519,76.483,1.30484396]
[1771942445737,5.05135626,76.51,76.483,1.30484396]
[1771942447954,13.07035773,76.509,76.484,13.07462998]
[1771942448134,13.07035773,76.509,76.485,1.30484396]
[1771942449231,5.05135626,76.5,76.48,0.1]
[1771942449435,5.05135626,76.5,76.47,0.1]
[1771942449436,5.05135626,76.49,76.47,0.1]
[1771942449631,5.05135626,76.49,76.47,1.40484396]
[1771942450333,13.07377531,76.489,76.47,0.1]
[1771942451955,45.75821359,76.489,76.46,0.1]
[1771942452145,5.05135626,76.47,76.46,0.1]
[1771942452345,5.05135626,76.47,76.443,1.30484396]
[1771942452535,5.05135626,76.46,76.44,0.1]
[1771942453143,5.05135626,76.46,76.4,0.1]
[1771942453337,5.05135626,76.45,76.427,1.30484396]
[1771942453840,5.05135626,76.45,76.43,1.40484396]
[1771942454657,13.08061583,76.449,76.43,1.40484396]
[1771942455153,3.69383402,76.48,76.432,1.30484396]
[1771942455154,5.05135626,76.47,76.432,1.30484396]
[1771942455360,5.06148632,76.46,76.432,1.30484396]
[1771942456146,5.06148632,76.47,76.432,1.30484396]
[1771942459060,5.06148632,76.46,76.434,1.30484396]
[1771942460450,13.07890503,76.459,76.436,1.30484396]
[1771942461460,65.36736904,76.491,76.436,1.30484396]
[1771942461461,5.06148632,76.47,76.436,1.30484396]
[1771942462156,18.13853323,76.47,76.436,1.30484396]
[1771942462464,18.13853323,76.47,76.438,1.30484396]
[1771942466967,13.07704691,76.47,76.44,1.30484396]
[1771942467348,18.13853323,76.47,76.44,1.30484396]
[1771942469351,3.69383402,76.486,76.442,1.30484396]
[1771942469852,5.06148632,76.47,76.442,1.30484396]
[1771942470575,5.06148632,76.48,76.442,1.30484396]
[1771942470782,5.06148632,76.47,76.442,1.30484396]
[1771942471965,13.07719468,76.469,76.444,1.30484396]
[1771942474057,13.07719468,76.469,76.446,1.30484396]
[1771942477681,13.07719468,76.469,76.448,1.30484396]
[1771942478160,5.06148632,76.49,76.45,1.30484396]
[1771942478354,13.07377531,76.489,76.45,1.30484396]
[1771942478763,45.75821359,76.489,76.45,1.30484396]
[1771942480363,45.75821359,76.489,76.452,1.30484396]
[1771942482267,13.07377531,76.489,76.452,1.30484396]
[1771942482470,45.75303137,76.498,76.454,1.30484396]
[1771942482664,13.07223718,76.498,76.454,1.30484396]
[1771942483383,32.67199662,76.519,76.454,1.30484396]
[1771942483781,32.66761789,76.529,76.457,1.30484396]
[1771942484560,45.72843898,76.539,76.463,1.30484396]
[1771942484981,5.06148632,76.53,76.463,1.30484396]
[1771942485279,5.06148632,76.52,76.463,1.30484396]
[1771942485480,45.72843898,76.539,76.463,1.30484396]
[1771942485777,5.06148632,76.53,76.463,1.30484396]
[1771942486293,45.72843898,76.539,76.463,1.30484396]
[1771942488487,5.06148632,76.53,76.468,1.30484396]
[1771942489370,45.72843898,76.539,76.468,1.30484396]
[1771942489674,5.06148632,76.53,76.47,1.30484396]
[1771942489875,5.06148632,76.54,76.47,1.30484396]
[1771942492776,3.69383402,76.545,76.47,1.30484396]
[1771942492970,13.06352793,76.549,76.475,1.30484396]
[1771942493175,45.72234777,76.549,76.475,1.30484396]
[1771942494274,5.06148632,76.54,76.475,1.30484396]
[1771942494787,5.06148632,76.53,76.475,1.30484396]
[1771942494974,45.73429679,76.529,76.477,1.30484396]
[1771942497071,5.06148632,76.54,76.479,1.30484396]
[1771942497670,3.69383402,76.545,76.479,1.30484396]
[1771942497878,45.72294507,76.548,76.479,1.30484396]
[1771942499296,45.72294507,76.548,76.481,1.30484396]
[1771942500673,0.2,76.55,76.484,1.30484396]
[1771942501376,13.06352793,76.549,76.489,1.30484396]
[1771942501884,0.2,76.55,76.489,1.30484396]
[1771942502499,5.06148632,76.58,76.491,1.30484396]
[1771942502675,45.69608188,76.593,76.495,1.30484396]
[1771942502994,5.06148632,76.59,76.496,1.30484396]
[1771942503378,13.05670527,76.589,76.504,3.69383402]
[1771942503694,13.05670527,76.589,76.509,1.30484396]
[1771942503997,13.05670527,76.589,76.514,1.30484396]
[1771942504295,5.06148632,76.6,76.514,1.30484396]
[1771942504594,45.6925025,76.599,76.514,1.30484396]
[1771942505178,0.2,76.62,76.514,1.30484396]
[1771942505378,45.68090476,76.619,76.523,3.69383402]
[1771942505791,45.68090476,76.619,76.527,3.69383402]
[1771942507407,45.68090476,76.619,76.528,215.60735938]
[1771942507583,5.06148632,76.6,76.531,3.69383402]
[1771942508493,13.05500071,76.599,76.535,3.69383402]
[1771942508894,45.6925025,76.599,76.535,3.69383402]
[1771942509103,45.6925025,76.599,76.532,45.73250404]
[1771942509409,5.06148632,76.58,76.532,45.73250404]
[1771942510304,5.06148632,76.58,76.533,1.30484396]
[1771942510531,13.05841026,76.579,76.534,45.73130895]
[1771942510691,13.05841026,76.579,76.535,1.30484396]
[1771942510892,5.06148632,76.57,76.535,1.30484396]
[1771942512400,5.06148632,76.56,76.521,1.30484396]
[1771942512605,5.06148632,76.55,76.521,1.30484396]
[1771942512801,5.06148632,76.55,76.507,1.30484396]
[1771942514404,5.06148632,76.54,76.508,13.07052857]
[1771942514718,45.72234777,76.549,76.486,1.30484396]
[1771942514719,5.06148632,76.52,76.486,1.30484396]
[1771942514912,5.06148632,76.51,76.468,1.30484396]
[1771942515210,3.69383402,76.539,76.468,1.30484396]
[1771942515403,12.63929271,76.52,76.468,1.30484396]
[1771942517014,13.06864961,76.519,76.47,1.30484396]
[1771942517892,13.06523471,76.539,76.473,1.30484396]
[1771942519192,12.63929271,76.52,76.478,1.30484396]
[1771942519486,12.63929271,76.51,76.478,1.30484396]
[1771942519709,12.63929271,76.51,76.474,13.07633967]
[1771942520424,12.63929271,76.52,76.475,1.30484396]
[1771942520987,12.63929271,76.53,76.475,1.30484396]
[1771942521209,13.06694194,76.529,76.477,1.30484396]
[1771942523311,13.06694194,76.529,76.478,45.7647951]
[1771942523511,13.06694194,76.529,76.479,1.30484396]
[1771942524913,13.06576214,76.536,76.479,1.30484396]
[1771942525916,45.72239949,76.549,76.481,1.30484396]
[1771942529020,45.72239949,76.549,76.483,1.30484396]
[1771942530939,13.06352793,76.549,76.488,1.30484396]
[1771942531597,12.63929271,76.55,76.488,1.30484396]
[1771942531818,12.63929271,76.57,76.488,1.30484396]
[1771942532018,12.63929271,76.58,76.488,1.30484396]
[1771942532207,12.63929271,76.57,76.488,1.30484396]
[1771942532920,12.63929271,76.58,76.488,1.30484396]
[1771942533704,45.70443593,76.579,76.493,1.30484396]
[1771942534522,12.63929271,76.56,76.493,1.30484396]
[1771942535020,12.63929271,76.57,76.493,1.30484396]
[1771942536023,45.71040499,76.569,76.497,3.69383402]
[1771942536225,45.71040499,76.569,76.498,1.30484396]
[1771942536424,13.06011571,76.569,76.498,1.30484396]
[1771942536935,13.06011571,76.569,76.502,1.30484396]
[1771942537627,12.63929271,76.56,76.502,1.30484396]
[1771942538236,12.63929271,76.56,76.504,1.30484396]
[1771942538237,13.0618216,76.559,76.504,1.30484396]
[1771942540626,12.63929271,76.55,76.506,1.30484396]
[1771942542013,12.63929271,76.54,76.505,13.0710411]
[1771942542624,13.06523471,76.539,76.498,1.30484396]
[1771942544030,45.7283215,76.539,76.498,1.30484396]
[1771942545310,13.06523471,76.539,76.5,1.30484396]
[1771942546213,12.63929271,76.53,76.499,13.0720663]
[1771942546605,12.63929271,76.51,76.463,45.77377292]
[1771942546913,12.63929271,76.5,76.464,1.30484396]
[1771942547112,12.63929271,76.5,76.461,58.86]
[1771942547433,3.69383402,76.519,76.461,58.86]
[1771942547434,13.07377531,76.489,76.461,71.93851981]
[1771942547611,12.63929271,76.52,76.462,1.30484396]
[1771942547927,12.63929271,76.51,76.462,1.30484396]
[1771942548836,12.63929271,76.52,76.462,1.30484396]
[1771942550236,12.63929271,76.51,76.464,1.30484396]
[1771942552547,12.63929271,76.52,76.466,1.30484396]
[1771942552847,45.73130895,76.534,76.466,1.30484396]
[1771942552848,12.63929271,76.53,76.466,1.30484396]
[1771942555126,45.73429679,76.529,76.468,1.30484396]
[1771942555530,13.06694194,76.529,76.468,1.30484396]
[1771942556239,13.06574683,76.536,76.471,1.30484396]
[1771942558427,32.66436709,76.536,76.476,1.30484396]
[1771942558624,12.63929271,76.53,76.476,1.30484396]
[1771942561238,13.06694194,76.529,76.478,1.30484396]
[1771942561928,12.63929271,76.51,76.434,52.33239171]
[1771942562242,12.63929271,76.49,76.448,1.30484396]
[1771942562948,12.63929271,76.49,76.449,1.30484396]
[1771942563452,12.63929271,76.5,76.451,1.30484396]
[1771942563748,12.63929271,76.51,76.451,1.30484396]
[1771942564330,12.63929271,76.5,76.451,1.30484396]
[1771942565145,12.63929271,76.51,76.451,1.30484396]
[1771942565655,45.74625206,76.509,76.453,1.30484396]
[1771942567144,12.63929271,76.5,76.455,1.30484396]
[1771942567342,45.74087142,76.518,76.455,1.30484396]
[1771942567544,12.63929271,76.51,76.455,1.30484396]
[1771942570250,12.63929271,76.52,76.456,111.17505491]
[1771942570429,12.63929271,76.52,76.457,1.30484396]
[1771942571448,3.69383402,76.525,76.457,1.30484396]
[1771942571646,12.63929271,76.52,76.457,1.30484396]
[1771942572848,12.63929271,76.52,76.456,111.17505491]
[1771942572849,13.06864961,76.519,76.46,1.30484396]
[1771942573152,12.63929271,76.51,76.46,1.30484396]
[1771942573732,12.63929271,76.5,76.46,1.30484396]
[1771942574760,12.63929271,76.49,76.46,1.30484396]
[1771942574937,13.07377531,76.489,76.461,13.07856292]
[1771942575257,13.07377531,76.489,76.462,1.30484396]
[1771942575555,13.0720663,76.499,76.462,1.30484396]
[1771942577062,13.0720663,76.499,76.464,1.30484396]
[1771942578359,45.75223205,76.499,76.464,1.30484396]
[1771942578758,12.64238987,76.49,76.464,1.30484396]
[1771942578937,3.69383402,76.519,76.465,45.77257568]
[1771942579143,12.64238987,76.51,76.466,1.30484396]
[1771942579342,12.64238987,76.5,76.466,1.30484396]
[1771942579556,12.64238987,76.49,76.46,1.30484396]
[1771942579743,12.64238987,76.49,76.454,1.30484396]
[1771942581843,13.07377531,76.489,76.456,1.30484396]
[1771942583357,45.75821359,76.489,76.456,1.30484396]
[1771942583596,5.0580616,76.48,76.432,1.30484396]
[1771942583860,5.0580616,76.46,76.43,0.1]
[1771942584063,5.0580616,76.46,76.431,14.38854036]
[1771942584363,5.0580616,76.47,76.432,1.30484396]
[1771942584662,5.0580616,76.46,76.432,1.30484396]
[1771942585263,12.64947749,76.48,76.432,1.30484396]
[1771942585464,12.64947749,76.47,76.432,1.30484396]
[1771942585853,12.64947749,76.46,76.43,0.1]
[1771942586053,12.64947749,76.46,76.431,1.30484396]
[1771942588247,12.64947749,76.44,76.42,0.1]
[1771942588463,12.64947749,76.43,76.406,1.30484396]
[1771942588669,12.64947749,76.43,76.399,1.30484396]
[1771942588864,12.64947749,76.42,76.393,1.30484396]
[1771942589172,12.64947749,76.42,76.39,0.1]
[1771942589347,12.64947749,76.42,76.394,13.08993943]
[1771942589968,12.64947749,76.43,76.394,13.08993943]
[1771942590968,45.79413573,76.429,76.394,13.08993943]
[1771942591557,45.79413573,76.429,76.399,1.30484396]
[1771942591758,45.79413573,76.429,76.4,1e-08]
[1771942591952,12.64947749,76.41,76.39,1e-08]
[1771942593052,13.08746351,76.409,76.39,1e-08]
[1771942593253,12.64947749,76.4,76.39,1e-08]
[1771942595165,45.80072757,76.418,76.39,1e-08]
[1771942595468,12.64947749,76.4,76.39,1e-08]
[1771942595656,12.64947749,76.41,76.391,1.30484396]
[1771942596058,12.64947749,76.41,76.39,1e-08]
[1771942597274,45.8061223,76.409,76.39,1e-08]
[1771942597953,0.1615515,76.392,76.39,1e-08]
[1771942598155,13.08575092,76.419,76.391,1.30484396]
[1771942598354,45.80012823,76.419,76.391,1.30484396]
[1771942598753,13.08575092,76.419,76.391,1.30484396]
[1771942600456,13.08575092,76.419,76.39,1e-08]
[1771942600457,12.64947749,76.41,76.39,1e-08]
[1771942600785,12.64947749,76.4,76.38,0.1]
[1771942602683,13.08917655,76.399,76.38,0.1]
[1771942603276,12.64947749,76.39,76.362,1.30484396]
[1771942603974,12.64947749,76.39,76.339,45.8481248]
[1771942603975,12.64947749,76.38,76.354,1.30484396]
[1771942605376,12.64947749,76.37,76.341,1.30484396]
[1771942605561,12.64947749,76.37,76.329,13.10111059]
[1771942605767,12.64947749,76.36,76.329,13.10111059]
[1771942605960,12.64947749,76.37,76.33,1.30484396]
[1771942606163,45.82411395,76.379,76.33,1.30484396]
[1771942608103,45.82411395,76.379,76.332,1.30484396]
[1771942608289,12.64947749,76.37,76.332,1.30484396]
[1771942609503,12.64947749,76.36,76.332,1.30484396]
[1771942609688,12.64947749,76.37,76.332,1.30484396]
[1771942610000,45.83611623,76.359,76.295,1.30484396]
[1771942610284,12.64947749,76.35,76.299,1.30484396]
[1771942610592,12.64947749,76.34,76.299,1.30484396]
[1771942610895,12.64947749,76.35,76.299,1.30484396]
[1771942611567,12.64947749,76.34,76.299,1.30484396]
[1771942612188,12.64947749,76.35,76.301,1.30484396]
[1771942612389,45.84211973,76.349,76.301,1.30484396]
[1771942612603,45.84211973,76.349,76.106,36.44620579]
[1771942612891,3.69383402,76.346,76.258,1.30484396]
[1771942613190,3.69383402,76.346,76.219,68.44234233]
[1771942613191,12.64947749,76.29,76.261,6.84769596]
[1771942613384,3.69383402,76.307,76.255,1.30484396]
[1771942613585,39.3,76.344,76.255,1.30484396]
[1771942613586,12.64947749,76.29,76.255,1.30484396]
[1771942613784,0.80954493,76.289,76.255,1.30484396]
[1771942613983,12.64947749,76.32,76.256,1.30484396]
[1771942614184,78.53183614,76.403,76.26,3.69383402]
[1771942614185,12.64947749,76.34,76.26,3.69383402]
[1771942614485,3.69383402,76.347,76.261,1.30484396]
[1771942614667,12.64947749,76.35,76.261,1.30484396]
[1771942615070,13.09517573,76.364,76.266,1.30484396]